[Event "Live Chess"]
[Site "Chess.com"]
[Date "2024.06.02"]
[Round "-"]
[White "Dhaydon19"]
[Black "McFim"]
[Result "1-0"]
[WhiteElo "2686"]
[BlackElo "1640"]
[TimeControl "300"]
[EndTime "20:17:22 PDT"]
[Termination "Dhaydon19 won by resignation"]

1. d4 {[%clk 0:04:53.3]} 1... d5 {[%clk 0:04:58]} 2. Nf3 {[%clk 0:04:52.6]} 2...
Nf6 {[%clk 0:04:55.8]} 3. c4 {[%clk 0:04:51.9]} 3... e6 {[%clk 0:04:53.4]} 4. e3
{[%clk 0:04:50.2]} 4... Be7 {[%clk 0:04:46.9]} 5. Qc2 {[%clk 0:04:49.1]} 5... b6
{[%clk 0:04:45.2]} 6. Nc3 {[%clk 0:04:46.8]} 6... O-O {[%clk 0:04:43.2]} 7. Be2
{[%clk 0:04:45.7]} 7... Bb7 {[%clk 0:04:41.4]} 8. O-O {[%clk 0:04:44.9]} 8...
Nbd7 {[%clk 0:04:39.6]} 9. Rd1 {[%clk 0:04:43]} 9... c6 {[%clk 0:04:30.8]} 10.
b3 {[%clk 0:04:41.8]} 10... Qc8 {[%clk 0:04:26.6]} 11. Bb2 {[%clk 0:04:40.4]}
11... Rd8 {[%clk 0:04:20.5]} 12. Rac1 {[%clk 0:04:38.6]} 12... Qc7 {[%clk
0:04:13.7]} 13. Ne5 {[%clk 0:04:34.2]} 13... Rac8 {[%clk 0:04:09.6]} 14. f4
{[%clk 0:04:32.1]} 14... Qb8 {[%clk 0:04:07.5]} 15. Qb1 {[%clk 0:04:29.1]} 15...
c5 {[%clk 0:03:37.8]} 16. cxd5 {[%clk 0:04:25.6]} 16... Nxd5 {[%clk 0:03:35.3]}
17. Nxd5 {[%clk 0:04:24.5]} 17... Bxd5 {[%clk 0:03:31.3]} 18. e4 {[%clk
0:04:23.8]} 18... Bb7 {[%clk 0:03:29]} 19. d5 {[%clk 0:04:21]} 19... exd5 {[%clk
0:03:23.9]} 20. exd5 {[%clk 0:04:20.3]} 20... Bd6 {[%clk 0:03:16.9]} 21. Bg4
{[%clk 0:04:17.3]} 21... Rc7 {[%clk 0:03:13.2]} 22. Nxd7 {[%clk 0:04:10.6]}
22... Rcxd7 {[%clk 0:03:09.7]} 23. Bxd7 {[%clk 0:04:10]} 23... Rxd7 {[%clk
0:03:09.4]} 24. Qf5 {[%clk 0:04:07]} 24... Rd8 {[%clk 0:03:05.1]} 25. Qg4 {[%clk
0:04:04.5]} 25... g6 {[%clk 0:02:57.8]} 26. Qg5 {[%clk 0:03:57.8]} 26... f5
{[%clk 0:02:17]} 27. Qf6 {[%clk 0:03:52.2]} 27... Qc7 {[%clk 0:02:14.6]} 28.
Qh8+ {[%clk 0:03:49.1]} 28... Kf7 {[%clk 0:02:13.1]} 29. Qxh7+ {[%clk
0:03:48.7]} 29... Kf8 {[%clk 0:02:11]} 30. Qh8+ {[%clk 0:03:47.3]} 30... Kf7
{[%clk 0:02:09.6]} 31. Qg7+ {[%clk 0:03:45.9]} 31... Ke8 {[%clk 0:02:06.7]} 32.
Re1+ {[%clk 0:03:45.5]} 1-0

[Event "Live Chess"]
[Site "Chess.com"]
[Date "2024.06.02"]
[Round "-"]
[White "MagnersCarlsberg2870"]
[Black "IgorSchukin"]
[Result "1-0"]
[WhiteElo "1836"]
[BlackElo "1757"]
[TimeControl "300"]
[EndTime "20:17:40 PDT"]
[Termination "MagnersCarlsberg2870 won on time"]

1. d4 {[%clk 0:04:57.4]} 1... d5 {[%clk 0:04:59.1]} 2. e3 {[%clk 0:04:55.8]}
2... Nf6 {[%clk 0:04:58.6]} 3. Bd3 {[%clk 0:04:54.4]} 3... g6 {[%clk 0:04:58.1]}
4. c4 {[%clk 0:04:52]} 4... Bg7 {[%clk 0:04:57.3]} 5. cxd5 {[%clk 0:04:50.8]}
5... Nxd5 {[%clk 0:04:56.1]} 6. Nc3 {[%clk 0:04:49.9]} 6... Nxc3 {[%clk
0:04:54.4]} 7. bxc3 {[%clk 0:04:49]} 7... c5 {[%clk 0:04:53.8]} 8. Ne2 {[%clk
0:04:44.9]} 8... O-O {[%clk 0:04:51.5]} 9. Kf1 {[%clk 0:04:44]} 9... Qa5 {[%clk
0:04:49.8]} 10. Bd2 {[%clk 0:04:41.8]} 10... Nc6 {[%clk 0:04:47.2]} 11. c4
{[%clk 0:04:40.1]} 11... Qa3 {[%clk 0:04:43.7]} 12. Bc1 {[%clk 0:04:34.4]} 12...
Qa6 {[%clk 0:04:36.2]} 13. Bb2 {[%clk 0:04:31]} 13... Bf5 {[%clk 0:04:30.2]} 14.
Bxf5 {[%clk 0:04:21.8]} 14... gxf5 {[%clk 0:04:28.5]} 15. Ng3 {[%clk 0:04:08.1]}
15... e6 {[%clk 0:04:25.5]} 16. Qe2 {[%clk 0:03:45.9]} 16... cxd4 {[%clk
0:04:19]} 17. Nh5 {[%clk 0:03:44]} 17... Rad8 {[%clk 0:04:11.4]} 18. Nxg7 {[%clk
0:03:41.5]} 18... Kxg7 {[%clk 0:04:10]} 19. exd4 {[%clk 0:03:37.8]} 19... Nxd4
{[%clk 0:04:04.4]} 20. Bxd4+ {[%clk 0:03:35.8]} 20... Rxd4 {[%clk 0:04:02.1]}
21. Qe5+ {[%clk 0:03:34.7]} 21... f6 {[%clk 0:03:56.6]} 22. Qxd4 {[%clk
0:03:33.6]} 22... b5 {[%clk 0:03:35.1]} 23. g3 {[%clk 0:03:25]} 23... bxc4
{[%clk 0:03:31.7]} 24. Kg2 {[%clk 0:03:23.5]} 24... Qc6+ {[%clk 0:03:28.2]} 25.
f3 {[%clk 0:03:19.7]} 25... Rb8 {[%clk 0:03:07.6]} 26. Qxa7+ {[%clk 0:03:16.1]}
26... Rb7 {[%clk 0:03:06.1]} 27. Qf2 {[%clk 0:03:07.8]} 27... c3 {[%clk
0:03:03.6]} 28. Rhe1 {[%clk 0:03:00.6]} 28... e5 {[%clk 0:02:58]} 29. Rac1
{[%clk 0:02:55.2]} 29... e4 {[%clk 0:02:52.3]} 30. Kh1 {[%clk 0:02:45.7]} 30...
exf3 {[%clk 0:02:45.7]} 31. Re3 {[%clk 0:02:38.9]} 31... Rb2 {[%clk 0:02:40.6]}
32. Qxf3 {[%clk 0:02:37.7]} 32... Qxf3+ {[%clk 0:02:20.6]} 33. Rxf3 {[%clk
0:02:36.3]} 33... Rxa2 {[%clk 0:02:14.3]} 34. Rfxc3 {[%clk 0:02:34.4]} 34... Kg6
{[%clk 0:02:12.9]} 35. R3c2 {[%clk 0:02:21.4]} 35... Ra5 {[%clk 0:02:06.6]} 36.
Kg2 {[%clk 0:02:20.3]} 36... h5 {[%clk 0:01:58.8]} 37. h4 {[%clk 0:02:16.7]}
37... Ra4 {[%clk 0:01:53.9]} 38. Rc6 {[%clk 0:02:13.4]} 38... f4 {[%clk
0:01:42.9]} 39. Rf1 {[%clk 0:02:05.3]} 39... fxg3 {[%clk 0:00:43.2]} 40. Rfxf6+
{[%clk 0:02:03.4]} 40... Kg7 {[%clk 0:00:40.3]} 41. Kxg3 {[%clk 0:02:01.7]}
41... Ra3+ {[%clk 0:00:38.3]} 42. Rf3 {[%clk 0:02:00.6]} 42... Ra4 {[%clk
0:00:33.3]} 43. Rc7+ {[%clk 0:01:58.6]} 43... Kg6 {[%clk 0:00:31.8]} 44. Rc5
{[%clk 0:01:54.7]} 44... Rg4+ {[%clk 0:00:29.1]} 45. Kh3 {[%clk 0:01:52.4]}
45... Ra4 {[%clk 0:00:27.3]} 46. Rg5+ {[%clk 0:01:49.9]} 46... Kh6 {[%clk
0:00:24.9]} 47. Rf6+ {[%clk 0:01:48.7]} 47... Kh7 {[%clk 0:00:23]} 48. Rxh5+
{[%clk 0:01:47.8]} 48... Kg7 {[%clk 0:00:22.1]} 49. Rf3 {[%clk 0:01:42.4]} 49...
Kg6 {[%clk 0:00:19.6]} 50. Rg5+ {[%clk 0:01:40.5]} 50... Kh6 {[%clk 0:00:14.5]}
51. Rg4 {[%clk 0:01:38.4]} 51... Ra1 {[%clk 0:00:12.2]} 52. Rf6+ {[%clk
0:01:36.2]} 52... Kh7 {[%clk 0:00:09.3]} 53. Rg3 {[%clk 0:01:29.9]} 53... Rh1+
{[%clk 0:00:04.8]} 54. Kg4 {[%clk 0:01:28.8]} 54... Rh2 {[%clk 0:00:02.8]} 55.
Kg5 {[%clk 0:01:27.4]} 55... Ra2 {[%clk 0:00:00.1]} 56. Rf7+ {[%clk 0:01:26.1]}
1-0

[Event "Live Chess"]
[Site "Chess.com"]
[Date "2024.06.02"]
[Round "-"]
[White "KeithArkell"]
[Black "juniortay"]
[Result "1-0"]
[WhiteElo "2441"]
[BlackElo "2418"]
[TimeControl "300"]
[EndTime "20:17:48 PDT"]
[Termination "KeithArkell won by resignation"]

1. d4 {[%clk 0:04:57.5]} 1... Nf6 {[%clk 0:04:59.1]} 2. Nf3 {[%clk 0:04:56.3]}
2... g6 {[%clk 0:04:58.3]} 3. c4 {[%clk 0:04:55.6]} 3... Bg7 {[%clk 0:04:56.8]}
4. g3 {[%clk 0:04:54.9]} 4... d6 {[%clk 0:04:56.7]} 5. Bg2 {[%clk 0:04:54.3]}
5... O-O {[%clk 0:04:56.6]} 6. O-O {[%clk 0:04:53.7]} 6... c6 {[%clk 0:04:56.5]}
7. Nc3 {[%clk 0:04:52.6]} 7... Qa5 {[%clk 0:04:56.2]} 8. e4 {[%clk 0:04:50.9]}
8... Bg4 {[%clk 0:04:55]} 9. h3 {[%clk 0:04:49.6]} 9... Bxf3 {[%clk 0:04:54.4]}
10. Bxf3 {[%clk 0:04:48.7]} 10... Nbd7 {[%clk 0:04:54.3]} 11. Be3 {[%clk
0:04:46.5]} 11... a6 {[%clk 0:04:53.5]} 12. a3 {[%clk 0:04:45.1]} 12... c5
{[%clk 0:04:52.8]} 13. e5 {[%clk 0:04:37.5]} 13... dxe5 {[%clk 0:04:47.1]} 14.
dxc5 {[%clk 0:04:36.7]} 14... Qc7 {[%clk 0:04:23.1]} 15. b4 {[%clk 0:04:35.4]}
15... e4 {[%clk 0:04:17.8]} 16. Nxe4 {[%clk 0:04:32.6]} 16... Nxe4 {[%clk
0:04:16.3]} 17. Bxe4 {[%clk 0:04:31.9]} 17... Nf6 {[%clk 0:04:06.7]} 18. Bf3
{[%clk 0:04:29]} 18... Rfd8 {[%clk 0:04:06.2]} 19. Qc2 {[%clk 0:04:27.6]} 19...
e5 {[%clk 0:03:50.1]} 20. Rad1 {[%clk 0:04:25.4]} 20... Re8 {[%clk 0:03:35.1]}
21. Bd5 {[%clk 0:04:24.1]} 21... Rad8 {[%clk 0:03:20.4]} 22. a4 {[%clk
0:04:20.6]} 22... Nh5 {[%clk 0:03:17.6]} 23. b5 {[%clk 0:04:17.3]} 23... e4
{[%clk 0:03:06.2]} 24. Kg2 {[%clk 0:04:16.6]} 24... Kh8 {[%clk 0:03:04.2]} 25.
b6 {[%clk 0:04:13.6]} 25... Qc8 {[%clk 0:03:02.9]} 26. Bxe4 {[%clk 0:04:08.4]}
26... f5 {[%clk 0:03:00.9]} 27. Rxd8 {[%clk 0:04:06.9]} 27... Rxd8 {[%clk
0:02:58]} 28. Bf3 {[%clk 0:04:06.2]} 28... Nf6 {[%clk 0:02:34.1]} 29. Rd1 {[%clk
0:04:04]} 29... Re8 {[%clk 0:02:29.6]} 30. Rd6 {[%clk 0:03:54.5]} 30... Ne4
{[%clk 0:02:21.5]} 31. Bxe4 {[%clk 0:03:53]} 31... Rxe4 {[%clk 0:02:18.5]} 32.
Qd3 {[%clk 0:03:52]} 32... Re8 {[%clk 0:02:16.9]} 33. Qd5 {[%clk 0:03:50.5]} 1-0

[Event "Live Chess"]
[Site "Chess.com"]
[Date "2024.06.02"]
[Round "-"]
[White "Mangoalo"]
[Black "booktrunk"]
[Result "0-1"]
[WhiteElo "1067"]
[BlackElo "1511"]
[TimeControl "300"]
[EndTime "20:18:17 PDT"]
[Termination "booktrunk won by checkmate"]

1. e4 {[%clk 0:04:58.6]} 1... b6 {[%clk 0:04:57.9]} 2. d4 {[%clk 0:04:56.3]}
2... h6 {[%clk 0:04:56.7]} 3. Nc3 {[%clk 0:04:54]} 3... Bb7 {[%clk 0:04:54.6]}
4. d5 {[%clk 0:04:45.9]} 4... g6 {[%clk 0:04:47.7]} 5. Nf3 {[%clk 0:04:44.6]}
5... Bg7 {[%clk 0:04:46.8]} 6. Bc4 {[%clk 0:04:41.3]} 6... a6 {[%clk 0:04:41]}
7. a4 {[%clk 0:04:39.3]} 7... Bxc3+ {[%clk 0:04:34.7]} 8. bxc3 {[%clk
0:04:37.7]} 8... d6 {[%clk 0:04:31]} 9. O-O {[%clk 0:04:32]} 9... Nd7 {[%clk
0:04:30.9]} 10. Re1 {[%clk 0:04:31]} 10... Nc5 {[%clk 0:04:28.7]} 11. Qd4 {[%clk
0:04:28.1]} 11... f6 {[%clk 0:04:18]} 12. Ba3 {[%clk 0:04:19.3]} 12... Qd7
{[%clk 0:04:15.3]} 13. e5 {[%clk 0:04:07.7]} 13... dxe5 {[%clk 0:04:05.9]} 14.
Nxe5 {[%clk 0:04:07.6]} 14... fxe5 {[%clk 0:04:03.9]} 15. Rxe5 {[%clk
0:04:07.5]} 15... Nf6 {[%clk 0:04:00.8]} 16. Rae1 {[%clk 0:04:01.6]} 16... Rh7
{[%clk 0:03:54.9]} 17. Bd3 {[%clk 0:03:55.5]} 17... Nxd3 {[%clk 0:03:50]} 18.
cxd3 {[%clk 0:03:52.2]} 18... O-O-O {[%clk 0:03:47.9]} 19. a5 {[%clk 0:03:46.9]}
19... b5 {[%clk 0:03:40.3]} 20. c4 {[%clk 0:03:45.1]} 20... Re8 {[%clk
0:03:29.1]} 21. Bc5 {[%clk 0:03:25.9]} 21... e6 {[%clk 0:03:21.9]} 22. d6 {[%clk
0:03:19.4]} 22... c6 {[%clk 0:03:17.9]} 23. f4 {[%clk 0:03:04]} 23... Ng4 {[%clk
0:03:13.7]} 24. h3 {[%clk 0:02:52.6]} 24... Nxe5 {[%clk 0:03:11.3]} 25. fxe5
{[%clk 0:02:50.7]} 25... Rf8 {[%clk 0:03:05.7]} 26. Rf1 {[%clk 0:02:48.8]} 26...
Rxf1+ {[%clk 0:03:02.6]} 27. Kxf1 {[%clk 0:02:48.7]} 27... Rf7+ {[%clk
0:03:00.9]} 28. Kg1 {[%clk 0:02:48.6]} 28... Rf5 {[%clk 0:02:50.7]} 29. cxb5
{[%clk 0:02:46.5]} 29... cxb5 {[%clk 0:02:46.8]} 30. Ba7 {[%clk 0:02:43.9]}
30... Qc6 {[%clk 0:02:44.7]} 31. Bb6 {[%clk 0:02:32.4]} 31... Rg5 {[%clk
0:02:40.7]} 32. g4 {[%clk 0:02:17.6]} 32... Qg2# {[%clk 0:02:27.8]} 0-1

[Event "Live Chess"]
[Site "Chess.com"]
[Date "2024.06.02"]
[Round "-"]
[White "Mikhail_Golubev"]
[Black "grillage"]
[Result "1-0"]
[WhiteElo "2545"]
[BlackElo "1860"]
[TimeControl "300"]
[EndTime "20:19:04 PDT"]
[Termination "Mikhail_Golubev won by resignation"]

1. e4 {[%clk 0:04:54.2]} 1... d5 {[%clk 0:04:58.6]} 2. exd5 {[%clk 0:04:52]}
2... Qxd5 {[%clk 0:04:58.1]} 3. Nf3 {[%clk 0:04:50.6]} 3... Bg4 {[%clk
0:04:56.2]} 4. Be2 {[%clk 0:04:49.6]} 4... Bxf3 {[%clk 0:04:55.3]} 5. Bxf3
{[%clk 0:04:47.6]} 5... Qe5+ {[%clk 0:04:54.8]} 6. Kf1 {[%clk 0:04:41.3]} 6...
c6 {[%clk 0:04:38.4]} 7. d4 {[%clk 0:04:39.3]} 7... Qc7 {[%clk 0:04:37.1]} 8. g3
{[%clk 0:04:25.7]} 8... Nf6 {[%clk 0:04:34.7]} 9. Kg2 {[%clk 0:04:24.8]} 9... e6
{[%clk 0:04:33.1]} 10. Re1 {[%clk 0:04:23.1]} 10... Be7 {[%clk 0:04:31.5]} 11.
c4 {[%clk 0:04:19]} 11... O-O {[%clk 0:04:29.1]} 12. Nc3 {[%clk 0:04:16]} 12...
Nbd7 {[%clk 0:04:25.2]} 13. d5 {[%clk 0:03:58.6]} 13... cxd5 {[%clk 0:04:16.7]}
14. cxd5 {[%clk 0:03:48.4]} 14... Nc5 {[%clk 0:03:55]} 15. Bf4 {[%clk
0:03:21.5]} 15... Bd6 {[%clk 0:03:43.8]} 16. Nb5 {[%clk 0:03:18.6]} 16... Qb6
{[%clk 0:03:31.3]} 17. Nxd6 {[%clk 0:03:14.1]} 17... Nxd5 {[%clk 0:03:30.4]} 18.
Bxd5 {[%clk 0:03:08.1]} 18... exd5 {[%clk 0:03:25.2]} 19. Qxd5 {[%clk
0:03:05.6]} 19... Rad8 {[%clk 0:03:18.6]} 20. Rad1 {[%clk 0:03:03.6]} 20... Ne6
{[%clk 0:03:15.8]} 21. Rxe6 {[%clk 0:02:50.3]} 21... fxe6 {[%clk 0:03:12.7]} 22.
Qxe6+ {[%clk 0:02:50.2]} 22... Kh8 {[%clk 0:03:11.6]} 23. Nf7+ {[%clk
0:02:47.3]} 1-0

[Event "Live Chess"]
[Site "Chess.com"]
[Date "2024.06.02"]
[Round "-"]
[White "RafaelRony"]
[Black "ShanthamGrarks"]
[Result "0-1"]
[WhiteElo "1063"]
[BlackElo "1905"]
[TimeControl "300"]
[EndTime "20:20:38 PDT"]
[Termination "ShanthamGrarks won by resignation"]

1. e4 {[%clk 0:04:57.9]} 1... e6 {[%clk 0:04:55.8]} 2. Nf3 {[%clk 0:04:57.5]}
2... b6 {[%clk 0:04:51.6]} 3. d4 {[%clk 0:04:57.1]} 3... Bb7 {[%clk 0:04:51]} 4.
Bd3 {[%clk 0:04:55]} 4... Nf6 {[%clk 0:04:48.5]} 5. Nc3 {[%clk 0:04:54.5]} 5...
Bb4 {[%clk 0:04:46.2]} 6. Qe2 {[%clk 0:04:45.9]} 6... d5 {[%clk 0:04:39.7]} 7.
e5 {[%clk 0:04:44]} 7... Ne4 {[%clk 0:04:36.4]} 8. Bd2 {[%clk 0:04:39.8]} 8...
Nxd2 {[%clk 0:04:34.9]} 9. Qxd2 {[%clk 0:04:39.7]} 9... f6 {[%clk 0:04:27.5]}
10. exf6 {[%clk 0:04:34.8]} 10... Qxf6 {[%clk 0:04:25.5]} 11. a3 {[%clk
0:04:32.6]} 11... Bd6 {[%clk 0:04:19.9]} 12. Qe3 {[%clk 0:04:22.1]} 12... O-O
{[%clk 0:04:16.5]} 13. O-O {[%clk 0:04:20.2]} 13... Nd7 {[%clk 0:04:11.4]} 14.
Rfe1 {[%clk 0:04:18.9]} 14... Rae8 {[%clk 0:04:08.5]} 15. Nb5 {[%clk 0:04:05.5]}
15... Bf4 {[%clk 0:04:05.4]} 16. Qe2 {[%clk 0:03:59.8]} 16... a6 {[%clk
0:03:53.9]} 17. Nc3 {[%clk 0:03:55.2]} 17... c5 {[%clk 0:03:50.3]} 18. dxc5
{[%clk 0:03:45.7]} 18... Nxc5 {[%clk 0:03:48.9]} 19. Rad1 {[%clk 0:03:28.1]}
19... e5 {[%clk 0:03:41.6]} 20. Qf1 {[%clk 0:03:08.9]} 20... e4 {[%clk
0:03:36.5]} 0-1

[Event "Live Chess"]
[Site "Chess.com"]
[Date "2024.06.02"]
[Round "-"]
[White "Mangoalo"]
[Black "NeilDruggan73"]
[Result "0-1"]
[WhiteElo "1067"]
[BlackElo "1783"]
[TimeControl "300"]
[EndTime "20:22:30 PDT"]
[Termination "NeilDruggan73 won by resignation"]

1. e4 {[%clk 0:04:56.9]} 1... d6 {[%clk 0:04:58.7]} 2. Nf3 {[%clk 0:04:56.8]}
2... Nf6 {[%clk 0:04:57.4]} 3. Bc4 {[%clk 0:04:55.9]} 3... Nxe4 {[%clk
0:04:54.6]} 4. Qe2 {[%clk 0:04:54.2]} 4... Nf6 {[%clk 0:04:52.1]} 5. d4 {[%clk
0:04:53.3]} 5... e6 {[%clk 0:04:50.9]} 6. Bg5 {[%clk 0:04:52.1]} 6... d5 {[%clk
0:04:49.9]} 7. Bb3 {[%clk 0:04:50.7]} 7... Be7 {[%clk 0:04:49.1]} 8. c3 {[%clk
0:04:49.8]} 8... O-O {[%clk 0:04:48.5]} 9. Nbd2 {[%clk 0:04:49.7]} 9... Nbd7
{[%clk 0:04:42.6]} 10. O-O {[%clk 0:04:47.3]} 10... Re8 {[%clk 0:04:41.6]} 11.
Rfe1 {[%clk 0:04:45.3]} 11... Nf8 {[%clk 0:04:40.3]} 12. Rad1 {[%clk 0:04:42.8]}
12... Ng6 {[%clk 0:04:39.4]} 13. Bc2 {[%clk 0:04:41.7]} 13... c6 {[%clk
0:04:33.2]} 14. Bxg6 {[%clk 0:04:40.3]} 14... hxg6 {[%clk 0:04:30]} 15. Ne5
{[%clk 0:04:39.2]} 15... Nh5 {[%clk 0:04:26.9]} 16. Bxe7 {[%clk 0:04:33.2]}
16... Qxe7 {[%clk 0:04:24.7]} 17. g4 {[%clk 0:04:30.6]} 17... Nf4 {[%clk
0:04:22]} 18. Qf3 {[%clk 0:04:27.2]} 18... g5 {[%clk 0:04:15]} 19. h3 {[%clk
0:04:14.3]} 19... g6 {[%clk 0:04:12.9]} 20. Kh2 {[%clk 0:04:12.7]} 20... Kg7
{[%clk 0:04:11.7]} 21. Rh1 {[%clk 0:04:09.4]} 21... Rh8 {[%clk 0:04:10.3]} 22.
Kg1 {[%clk 0:04:08]} 22... Bd7 {[%clk 0:04:02.7]} 23. Nxd7 {[%clk 0:04:02.5]}
23... Qxd7 {[%clk 0:04:00.5]} 24. Nf1 {[%clk 0:04:01.5]} 24... Rh4 {[%clk
0:03:57]} 25. Ne3 {[%clk 0:03:58.2]} 25... Rah8 {[%clk 0:03:55.6]} 26. Ng2
{[%clk 0:03:48.3]} 26... Rxh3 {[%clk 0:03:37.4]} 27. Rxh3 {[%clk 0:03:37.9]}
27... Rxh3 {[%clk 0:03:35.6]} 28. Qe2 {[%clk 0:03:34.7]} 28... Qd6 {[%clk
0:03:29.6]} 29. Nxf4 {[%clk 0:03:32.8]} 29... Qxf4 {[%clk 0:03:26.9]} 30. Qe5+
{[%clk 0:03:32.7]} 30... f6 {[%clk 0:03:16.8]} 31. Qxf4 {[%clk 0:03:30.5]} 31...
gxf4 {[%clk 0:03:14.9]} 32. Kg2 {[%clk 0:03:27.9]} 32... Rh4 {[%clk 0:03:11.7]}
33. f3 {[%clk 0:03:26.3]} 33... f5 {[%clk 0:03:08.7]} 34. gxf5 {[%clk
0:03:23.2]} 34... gxf5 {[%clk 0:03:06.8]} 35. Rh1 {[%clk 0:03:20.9]} 35... Rxh1
{[%clk 0:03:04.4]} 36. Kxh1 {[%clk 0:03:20]} 36... Kg6 {[%clk 0:03:03.8]} 37.
Kh2 {[%clk 0:03:13.8]} 37... Kf6 {[%clk 0:03:01.5]} 38. Kh3 {[%clk 0:03:12.7]}
38... b6 {[%clk 0:02:58.2]} 39. b4 {[%clk 0:03:11.2]} 39... e5 {[%clk
0:02:55.8]} 40. dxe5+ {[%clk 0:03:09.2]} 40... Kxe5 {[%clk 0:02:53.9]} 0-1

[Event "Live Chess"]
[Site "Chess.com"]
[Date "2024.06.02"]
[Round "-"]
[White "juniortay"]
[Black "MagnersCarlsberg2870"]
[Result "1-0"]
[WhiteElo "2419"]
[BlackElo "1835"]
[TimeControl "300"]
[EndTime "20:22:50 PDT"]
[Termination "juniortay won by resignation"]

1. e4 {[%clk 0:04:57.8]} 1... d5 {[%clk 0:04:57.3]} 2. Nf3 {[%clk 0:04:57.7]}
2... dxe4 {[%clk 0:04:55.6]} 3. Ng5 {[%clk 0:04:57.6]} 3... Nf6 {[%clk
0:04:51.5]} 4. Bc4 {[%clk 0:04:56.7]} 4... e6 {[%clk 0:04:47.6]} 5. Nc3 {[%clk
0:04:55.9]} 5... h6 {[%clk 0:04:44.6]} 6. Ngxe4 {[%clk 0:04:53.9]} 6... Nxe4
{[%clk 0:04:42.6]} 7. Nxe4 {[%clk 0:04:53.8]} 7... Nc6 {[%clk 0:04:39.1]} 8. c3
{[%clk 0:04:52.8]} 8... Qh4 {[%clk 0:04:31.4]} 9. Qe2 {[%clk 0:04:49.7]} 9...
Ne5 {[%clk 0:04:14]} 10. Bb3 {[%clk 0:04:46]} 10... Bd7 {[%clk 0:04:04.1]} 11.
d4 {[%clk 0:04:44.5]} 11... Ng4 {[%clk 0:03:53.8]} 12. h3 {[%clk 0:04:37.4]}
12... f5 {[%clk 0:03:48.5]} 13. Ng3 {[%clk 0:04:34.4]} 13... O-O-O {[%clk
0:03:44.2]} 14. hxg4 {[%clk 0:04:31.4]} 14... Qf6 {[%clk 0:03:32.9]} 15. Bf4
{[%clk 0:04:26.2]} 15... fxg4 {[%clk 0:03:22.1]} 16. Be5 {[%clk 0:04:25.6]}
16... Qg6 {[%clk 0:03:15.4]} 17. O-O-O {[%clk 0:04:23.5]} 17... h5 {[%clk
0:03:06.2]} 18. Bc2 {[%clk 0:03:51]} 18... Qf7 {[%clk 0:02:59.6]} 19. Ne4 {[%clk
0:03:46.6]} 19... Be7 {[%clk 0:02:36.1]} 20. f4 {[%clk 0:03:43.9]} 20... Bf6
{[%clk 0:02:31.3]} 21. g3 {[%clk 0:03:39.4]} 21... a6 {[%clk 0:02:26.7]} 22. Kb1
{[%clk 0:03:36.7]} 22... Bb5 {[%clk 0:02:25.3]} 23. Qe3 {[%clk 0:03:35.3]} 23...
Bxe5 {[%clk 0:02:14.9]} 24. dxe5 {[%clk 0:03:27.1]} 24... Rxd1+ {[%clk
0:02:13.2]} 25. Rxd1 {[%clk 0:03:25.4]} 25... h4 {[%clk 0:02:11]} 26. Qa7 {[%clk
0:03:23.5]} 1-0

[Event "Live Chess"]
[Site "Chess.com"]
[Date "2024.06.02"]
[Round "-"]
[White "NeilDruggan73"]
[Black "booktrunk"]
[Result "1-0"]
[WhiteElo "1786"]
[BlackElo "1509"]
[TimeControl "300"]
[EndTime "20:25:02 PDT"]
[Termination "NeilDruggan73 won by checkmate"]

1. d4 {[%clk 0:04:57.5]} 1... b6 {[%clk 0:04:58]} 2. Bg5 {[%clk 0:04:53.3]} 2...
Bb7 {[%clk 0:04:55.4]} 3. Nc3 {[%clk 0:04:51.7]} 3... h6 {[%clk 0:04:53.8]} 4.
Bh4 {[%clk 0:04:49.6]} 4... d6 {[%clk 0:04:46.7]} 5. e4 {[%clk 0:04:48.2]} 5...
Nd7 {[%clk 0:04:45.3]} 6. Bd3 {[%clk 0:04:41.8]} 6... Ngf6 {[%clk 0:04:41.9]} 7.
f3 {[%clk 0:04:38.7]} 7... g5 {[%clk 0:04:39.8]} 8. Bf2 {[%clk 0:04:36.2]} 8...
e5 {[%clk 0:04:34.2]} 9. d5 {[%clk 0:04:34.1]} 9... Bg7 {[%clk 0:04:27.2]} 10.
Qe2 {[%clk 0:04:31.6]} 10... Nh5 {[%clk 0:04:25.7]} 11. g3 {[%clk 0:04:29]}
11... Qe7 {[%clk 0:04:17.1]} 12. b4 {[%clk 0:04:17.5]} 12... a6 {[%clk
0:04:14.8]} 13. a4 {[%clk 0:04:14.7]} 13... O-O {[%clk 0:04:10]} 14. f4 {[%clk
0:04:11.1]} 14... exf4 {[%clk 0:04:04.4]} 15. Qxh5 {[%clk 0:04:09.4]} 15... fxg3
{[%clk 0:04:00.7]} 16. hxg3 {[%clk 0:04:06.9]} 16... Bxc3+ {[%clk 0:03:58.6]}
17. Kf1 {[%clk 0:04:03.6]} 17... Bxa1 {[%clk 0:03:56.4]} 18. Qxh6 {[%clk
0:04:03.1]} 18... Qf6 {[%clk 0:03:42]} 19. Qh7# {[%clk 0:03:59.5]} 1-0